bitfinex/quotes_SOLUSD_20260113
["timestamp","ask_amount","ask_price","bid_price","bid_amount"]
[1768336479406,0.72060453,143.38,143.33,0.67689807]
[1768336479609,0.72060453,143.39,143.34,0.67689807]
[1768336479807,2.96445223,143.38,143.34,0.67689807]
[1768336480220,2.2438477,143.37,143.34,0.67689807]
[1768336480522,0.72060453,143.38,143.34,0.67689807]
[1768336480724,2.96445223,143.38,143.34,7.65299296]
[1768336480911,2.2438477,143.37,143.34,7.65299296]
[1768336483220,0.72060453,143.38,143.34,7.65299296]
[1768336483522,7.69465256,143.39,143.35,0.67689807]
[1768336483742,2.2438477,143.38,143.35,0.67689807]
[1768336483915,2.96445223,143.38,143.35,0.67689807]
[1768336484428,2.2438477,143.37,143.35,0.67689807]
[1768336485227,2.96445223,143.38,143.35,0.67689807]
[1768336486719,2.2438477,143.39,143.36,0.67689807]
[1768336487131,2.96445223,143.39,143.36,0.67689807]
[1768336489937,0.72060453,143.39,143.36,0.67689807]
[1768336490233,2.96445223,143.39,143.36,0.67689807]
[1768336490429,7.69313276,143.42,143.37,0.67689807]
[1768336490632,2.2438477,143.4,143.37,0.67689807]
[1768336490820,0.72060453,143.39,143.35,7.65262549]
[1768336491129,2.96445223,143.39,143.36,0.67689807]
[1768336491533,2.96445223,143.38,143.34,20.37317017]
[1768336491732,2.96445223,143.36,143.32,7.70572665]
[1768336491915,2.96445223,143.36,143.32,0.72859209]
[1768336492109,2.96445223,143.37,143.33,0.67689807]
[1768336492910,2.2438477,143.37,143.33,0.67689807]
[1768336493435,6.97486896,143.38,143.33,0.67689807]
[1768336493739,9.21871666,143.38,143.33,0.67689807]
[1768336494229,2.2438477,143.37,143.34,0.67689807]
[1768336496250,9.2188806,143.37,143.34,0.67689807]
[1768336496539,9.93948513,143.37,143.34,0.67689807]
[1768336496744,9.93948513,143.37,143.33,0.67689807]
[1768336498222,0.72060453,143.35,143.32,0.05169402]
[1768336498627,2.96445223,143.35,143.32,0.05169402]
[1768336499016,0.72060453,143.35,143.32,0.72859209]
[1768336499507,7.69655912,143.35,143.32,0.72859209]
[1768336499711,0.72060453,143.35,143.32,0.72859209]
[1768336500713,7.69655511,143.35,143.32,0.72859209]
[1768336501336,0.72060453,143.35,143.32,0.72859209]
[1768336501826,4.22265121,143.36,143.33,0.67689807]
[1768336502632,0.72060453,143.36,143.33,0.67689807]
[1768336502937,4.22265121,143.36,143.33,0.67689807]
[1768336503251,3.50204668,143.37,143.33,0.67689807]
[1768336503553,4.22265121,143.37,143.33,0.67689807]
[1768336503713,0.72060453,143.35,143.32,0.72859209]
[1768336503918,4.22265121,143.36,143.32,7.70598285]
[1768336504116,4.22265121,143.36,143.32,0.72859209]
[1768336504338,0.72060453,143.35,143.32,0.05169402]
[1768336504542,4.22265121,143.35,143.32,0.05169402]
[1768336504725,0.72060453,143.35,143.32,0.05169402]
[1768336504931,0.65739428,143.32,143.28,0.69625786]
[1768336505239,4.15944096,143.32,143.29,0.69625786]
[1768336505945,0.65739428,143.32,143.29,0.69625786]
[1768336506129,4.15944096,143.32,143.29,0.69625786]
[1768336506329,0.65739428,143.32,143.29,0.69625786]
[1768336506532,4.15944096,143.32,143.29,0.69625786]
[1768336506845,3.50204668,143.32,143.29,0.69625786]
[1768336508822,10.47953806,143.32,143.29,0.69625786]
[1768336509328,3.50204668,143.32,143.29,0.69625786]
[1768336511223,11.13654735,143.33,143.29,7.67508845]
[1768336511761,11.13654735,143.33,143.3,0.69625786]
[1768336513842,3.50204668,143.34,143.3,0.69625786]
[1768336514034,4.15944096,143.34,143.3,0.69625786]
[1768336514238,4.15944096,143.33,143.3,0.69625786]
[1768336514948,0.65739428,143.33,143.29,0.69625786]
[1768336515132,4.15944096,143.33,143.29,0.69625786]
[1768336515551,11.1365806,143.33,143.29,0.69625786]
[1768336518354,4.2143674,143.32,143.29,0.69625786]
[1768336518838,11.19177351,143.32,143.29,0.69625786]
[1768336519342,4.2143674,143.31,143.26,0.69764644]
[1768336519541,4.2143674,143.31,143.27,0.69764644]
[1768336520146,0.71232072,143.31,143.27,0.69764644]
[1768336520346,0.71232072,143.32,143.28,7.67680201]
[1768336520545,4.2143674,143.32,143.28,7.67680201]
[1768336520940,0.71232072,143.34,143.29,0.69764644]
[1768336521333,0.71232072,143.33,143.29,0.69764644]
[1768336522431,4.2143674,143.33,143.29,7.67638712]
[1768336525261,4.2143674,143.32,143.29,0.69764644]
[1768336525562,7.68896806,143.34,143.28,0.69764644]
[1768336525766,4.2143674,143.33,143.28,0.69764644]
[1768336526465,4.2143674,143.33,143.29,6.97878656]
[1768336526670,4.2143674,143.33,143.29,7.676433]
[1768336527160,0.71232072,143.32,143.29,6.97878656]
[1768336528565,0.71232072,143.32,143.28,7.67677933]
[1768336528790,0.71232072,143.3,143.27,6.97965067]
[1768336529069,0.71232072,143.3,143.27,19.69965067]
[1768336529273,3.50204668,143.31,143.27,20.39729711]
[1768336529457,3.50204668,143.31,143.28,0.69764644]
[1768336530448,4.2143674,143.32,143.28,0.69764644]
[1768336531048,0.71232072,143.32,143.28,7.67679398]
[1768336532063,4.2143674,143.32,143.28,7.67679398]
[1768336532254,0.71232072,143.31,143.28,6.97914754]
[1768336533365,0.71232072,143.31,143.27,13.41764644]
[1768336533366,0.71232072,143.3,143.27,19.69972872]
[1768336539450,0.71232072,143.3,143.27,20.38393083]
[1768336540153,0.71232072,143.3,143.27,7.66393083]
[1768336543364,2.58377094,143.31,143.27,7.66393083]
[1768336543365,0.67018718,143.34,143.3,0.68420211]
[1768336543676,0.67018718,143.33,143.28,3.50204668]
[1768336543850,0.67018718,143.32,143.27,27.93134614]
[1768336544050,0.67018718,143.27,143.22,0.1]
[1768336544454,0.67018718,143.27,143.22,3.60204668]
[1768336544657,0.67018718,143.27,143.23,6.98160705]
[1768336544995,0.67018718,143.29,143.24,6.98108061]
[1768336545153,0.67018718,143.28,143.24,6.98108061]
[1768336545353,0.67018718,143.27,143.23,6.98162146]
[1768336545657,0.67018718,143.27,143.22,7.08206437]
[1768336545855,0.67018718,143.27,143.22,7.76626648]
[1768336546265,0.67018718,143.27,143.23,0.68420211]
[1768336547385,0.67018718,143.27,143.22,28.72397577]
[1768336547759,0.67018718,143.27,143.23,7.66578687]
[1768336552782,0.67018718,143.27,143.23,6.98158476]
[1768336553285,0.67018718,143.27,143.23,7.66578687]
[1768336553864,0.67018718,143.26,143.22,7.08222232]
[1768336554173,0.67018718,143.26,143.22,11.26847111]
[1768336554873,0.67018718,143.27,143.23,0.68420211]
[1768336555258,0.60151101,143.31,143.26,4.18624879]
[1768336555463,0.60151101,143.31,143.27,3.50204668]
[1768336556309,0.67018718,143.3,143.27,3.50204668]
[1768336556476,0.67018718,143.3,143.26,7.66450355]
[1768336556869,0.67018718,143.3,143.27,3.50204668]
[1768336557068,0.67018718,143.3,143.26,4.18624879]
[1768336557288,0.67018718,143.3,143.24,20.38527628]
[1768336557587,0.67018718,143.3,143.25,4.18624879]
[1768336558089,0.67018718,143.3,143.25,3.50204668]
[1768336558471,0.67018718,143.28,143.25,3.50204668]
[1768336558817,7.64904125,143.29,143.25,0.68420211]
[1768336559965,6.97885407,143.29,143.26,0.68420211]
[1768336560165,7.64904125,143.29,143.26,0.68420211]
[1768336560376,7.64904125,143.29,143.26,0.62420211]
[1768336561882,0.67018718,143.28,143.23,6.98165522]
[1768336562087,0.67018718,143.28,143.24,2.24303016]
[1768336562299,0.67018718,143.28,143.25,2.24303016]
[1768336563214,7.64904125,143.29,143.25,2.92723227]
[1768336564018,0.67018718,143.29,143.26,2.24303016]
[1768336564222,7.64822603,143.31,143.27,2.92723227]
[1768336564511,7.64822603,143.31,143.27,0.68420211]
[1768336564713,0.67018718,143.3,143.27,2.92723227]
[1768336565485,0.67018718,143.3,143.27,2.24303016]
[1768336565808,0.67018718,143.3,143.26,0.65997613]
[1768336565997,0.67018718,143.3,143.25,6.9806913]
[1768336566201,0.67018718,143.3,143.24,2.90300629]
[1768336566592,0.65275381,143.28,143.24,9.88425028]
[1768336566794,0.65275381,143.28,143.25,0.65997613]
[1768336566987,7.63160788,143.29,143.25,2.90300629]
[1768336567209,7.63160788,143.29,143.25,0.65997613]
[1768336568194,7.63160788,143.29,143.25,2.90300629]
[1768336568399,0.65275381,143.28,143.25,2.24303016]
[1768336568833,0.65275381,143.28,143.25,2.90300629]
[1768336569116,0.65275381,143.29,143.25,0.65997613]
[1768336569426,0.65275381,143.29,143.24,9.22414231]
[1768336569600,0.65275381,143.29,143.24,9.88411844]
[1768336569915,7.63112087,143.3,143.27,0.65997613]
[1768336570116,7.63112087,143.3,143.23,30.17377031]
[1768336570117,0.65275381,143.29,143.26,0.65997613]
[1768336570294,7.63112087,143.3,143.26,0.65997613]
[1768336570502,7.63112087,143.3,143.26,2.90300629]
[1768336570920,0.65275381,143.29,143.26,2.90300629]
[1768336571597,0.65275381,143.31,143.27,2.90300629]
[1768336572516,0.65275381,143.31,143.28,2.24303016]
[1768336572694,0.65275381,143.31,143.27,2.90300629]
[1768336573312,7.63065429,143.31,143.27,2.90300629]
[1768336574516,0.65275381,143.31,143.28,0.65997613]
[1768336574722,0.65275381,143.32,143.28,2.90300629]
[1768336575420,7.62848162,143.36,143.32,0.65997613]
[1768336575599,0.65275381,143.35,143.31,2.24303016]
[1768336575800,0.65275381,143.35,143.28,9.22228786]
[1768336575801,0.65275381,143.35,143.32,2.24303016]
[1768336576698,0.65275381,143.35,143.32,9.22031785]
[1768336576898,0.65275381,143.35,143.32,2.24303016]
[1768336577417,0.68665239,143.34,143.29,6.97867787]
[1768336577592,0.68665239,143.34,143.29,2.24303016]
[1768336577798,0.68665239,143.34,143.29,2.66609043]
[1768336579103,7.66320866,143.34,143.29,2.66609043]
[1768336579316,0.68665239,143.33,143.29,2.66609043]
[1768336579719,0.68665239,143.33,143.29,9.6449233]
[1768336580011,7.66320866,143.34,143.3,0.42306027]
[1768336582128,7.66320866,143.34,143.3,2.66609043]
[1768336582628,6.9760983,143.35,143.32,0.42306027]
[1768336582811,7.66275069,143.35,143.31,2.66609043]
[1768336583123,0.68665239,143.33,143.26,0.42306027]
[1768336583308,0.68665239,143.33,143.28,2.66609043]
[1768336583622,0.68665239,143.33,143.29,2.66609043]
[1768336583806,0.68665239,143.33,143.29,2.24303016]
[1768336584528,0.68665239,143.32,143.29,2.24303016]
[1768336585236,0.68665239,143.32,143.28,9.64514938]
[1768336586031,0.68665239,143.32,143.28,7.40211922]
[1768336586217,0.68665239,143.32,143.29,2.24303016]
[1768336587434,0.68665239,143.32,143.28,9.64514938]
[1768336588334,7.66358874,143.33,143.29,0.42306027]
[1768336588855,2.92968255,143.35,143.3,0.42306027]
[1768336589131,17.43790993,143.37,143.29,9.22187182]
[1768336589132,9.90476166,143.37,143.32,0.42306027]
[1768336589510,7.6617315,143.37,143.32,0.42306027]
[1768336590024,0.68665239,143.36,143.32,0.42306027]
[1768336590209,7.66124157,143.38,143.33,0.42306027]
[1768336590635,0.68665239,143.37,143.33,0.42306027]
[1768336592129,0.68665239,143.37,143.33,7.39983553]
[1768336592653,0.68665239,143.38,143.34,0.42306027]
[1768336593818,7.66116752,143.38,143.34,7.3993107]
[1768336594424,7.66116752,143.38,143.34,0.42306027]
[1768336595334,7.66116752,143.38,143.34,7.39943751]
[1768336595517,0.68665239,143.38,143.34,7.39943751]
[1768336595718,7.66114766,143.38,143.34,7.39943751]
[1768336596442,0.68665239,143.38,143.34,7.39943751]
[1768336599046,0.68665239,143.38,143.34,6.97637724]
[1768336599420,0.6589689,143.37,143.33,9.64279078]
[1768336600242,0.6589689,143.37,143.31,0.42306027]
[1768336600441,9.2175687,143.38,143.31,0.42306027]
[1768336600442,2.90199906,143.36,143.31,0.42306027]
[1768336600644,0.6589689,143.35,143.31,7.40067066]
[1768336600944,0.62896891,143.35,143.31,7.40067066]
[1768336601343,0.62896891,143.35,143.32,0.45306026]
[1768336602557,9.21848485,143.36,143.32,0.45306026]
[1768336603050,9.87745375,143.36,143.32,0.45306026]
[1768336603345,9.87745375,143.36,143.3,0.45306026]
[1768336603346,0.6589689,143.35,143.3,0.45306026]
[1768336603553,2.90199906,143.34,143.3,0.45306026]
[1768336604232,2.90199906,143.33,143.3,0.45306026]
[1768336604436,0.6589689,143.33,143.3,0.45306026]
[1768336604623,2.24303016,143.33,143.28,0.45306026]
[1768336604821,0.6589689,143.31,143.27,0.45306026]
[1768336605043,2.24303016,143.32,143.27,0.45306026]
[1768336605247,2.24303016,143.32,143.26,6.98004562]
[1768336605543,24.41925539,143.33,143.26,0.48306025]
[1768336605544,2.24303016,143.3,143.26,0.48306025]
[1768336606425,9.22153067,143.3,143.26,0.48306025]
[1768336607150,9.88049957,143.3,143.26,0.48306025]
[1768336608444,9.88087522,143.29,143.25,0.48306025]
[1768336609122,2.90199906,143.28,143.24,0.48306025]
[1768336609328,0.6589689,143.25,143.22,0.1]
[1768336609543,0.6589689,143.25,143.22,0.58306025]
[1768336609737,0.6589689,143.26,143.22,0.58306025]
[1768336609935,0.6589689,143.28,143.23,0.48306025]
[1768336610160,0.6589689,143.28,143.22,0.1]
[1768336610161,0.6589689,143.24,143.22,0.1]
[1768336610323,0.6589689,143.24,143.17,12.82]
[1768336610532,0.6589689,143.23,143.19,6.98340212]
[1768336611360,2.90199906,143.24,143.2,0.58306025]
[1768336611547,0.6589689,143.24,143.2,0.58306025]
[1768336612742,9.88332546,143.24,143.2,0.58306025]
[1768336612940,7.6402953,143.24,143.2,0.58306025]
[1768336613151,0.6589689,143.24,143.2,7.56628461]
[1768336613471,0.6589689,143.22,143.19,0.58306025]
[1768336613760,0.6589689,143.24,143.19,0.58306025]
[1768336614261,0.6589689,143.24,143.17,0.68306025]
[1768336614455,2.24303016,143.21,143.17,0.68306025]
[1768336614632,2.90199906,143.22,143.18,7.56726375]
[1768336614831,0.6589689,143.22,143.18,7.56726375]
[1768336615533,9.88391528,143.23,143.18,7.56726375]
[1768336616667,0.6589689,143.23,143.19,2.82609041]
[1768336617362,0.6589689,143.23,143.19,0.58306025]
[1768336618875,0.6589689,143.23,143.19,7.56653413]
[1768336619942,0.6589689,143.28,143.22,0.58306025]
[1768336620140,0.6589689,143.27,143.22,0.58306025]
[1768336620354,0.6589689,143.3,143.22,0.58306025]
[1768336620548,0.6589689,143.26,143.22,0.58306025]
[1768336621366,0.6589689,143.26,143.22,7.56514875]
[1768336621538,0.6589689,143.27,143.23,0.58306025]
[1768336621956,0.6589689,143.27,143.23,4.0893526]
[1768336622360,0.6589689,143.28,143.23,0.58306025]
[1768336622874,0.6589689,143.26,143.22,6.9820885]
[1768336623943,0.6589689,143.26,143.22,10.48838085]
[1768336624863,0.6589689,143.26,143.22,6.9820885]
[1768336625173,0.6966247,143.24,143.2,12.72]
[1768336625339,0.6966247,143.24,143.2,19.70294694]
[1768336625538,0.6966247,143.24,143.19,0.58306025]
[1768336625743,0.6966247,143.23,143.2,6.9831617]
[1768336626457,0.6966247,143.23,143.19,6.98353686]
[1768336627545,10.48762053,143.24,143.2,0.58306025]
[1768336627546,0.6966247,143.24,143.2,0.58306025]
[1768336627948,3.50629235,143.28,143.23,0.58306025]
[1768336627949,0.6966247,143.28,143.23,0.58306025]
[1768336628156,4.20291705,143.27,143.22,0.58306025]
[1768336628545,0.6966247,143.25,143.21,0.58306025]
[1768336628741,0.6966247,143.25,143.21,13.30306025]
[1768336628966,4.20291705,143.28,143.22,0.58306025]
[1768336629173,4.20291705,143.29,143.24,0.58306025]
[1768336629463,0.6966247,143.29,143.24,0.58306025]
[1768336629657,0.6966247,143.29,143.25,6.98080279]
[1768336629854,0.6966247,143.29,143.25,7.56386304]
[1768336630366,4.20291705,143.31,143.26,0.58306025]
[1768336630545,4.20291705,143.33,143.28,0.58306025]
[1768336630953,0.6966247,143.31,143.26,0.58306025]
[1768336631155,0.6966247,143.3,143.26,0.58306025]
[1768336631849,3.50629235,143.31,143.27,6.97982829]
[1768336632049,4.20291705,143.31,143.27,6.97982829]
[1768336632671,0.6966247,143.31,143.27,6.97982829]
[1768336632874,0.6966247,143.31,143.27,7.56288854]
[1768336633077,4.20291705,143.33,143.28,0.58306025]
[1768336633574,4.20291705,143.35,143.3,0.58306025]
[1768336633958,4.20291705,143.35,143.31,6.97788012]
[1768336634145,0.6966247,143.35,143.31,6.97788012]
[1768336634494,0.6966247,143.34,143.31,6.97788012]
[1768336634802,0.6966247,143.34,143.19,0.58306025]
[1768336634803,0.6966247,143.31,143.19,0.58306025]
[1768336635070,0.6966247,143.26,143.19,0.58306025]
[1768336635372,0.6966247,143.26,143.21,4.0893526]
[1768336635570,0.6966247,143.3,143.22,0.58306025]
[1768336635870,7.67597478,143.28,143.23,0.58306025]
[1768336636074,0.6966247,143.27,143.23,11.07099263]
[1768336636281,0.6966247,143.28,143.23,11.07099263]
[1768336636653,0.6966247,143.28,143.23,7.56470028]
[1768336637653,0.6966247,143.28,143.23,11.07099263]
[1768336638771,4.20398567,143.27,143.22,20.28516512]
[1768336638975,0.69769332,143.25,143.21,7.56570502]
[1768336639178,0.69769332,143.27,143.22,7.56530227]
[1768336639379,0.69769332,143.27,143.22,0.58306025]
[1768336639554,4.20398567,143.27,143.22,0.58306025]
[1768336640663,4.20398567,143.27,143.22,0.70102745]
[1768336640664,11.18393516,143.27,143.22,0.70102745]
[1768336640869,0.69769332,143.27,143.22,11.18946459]
[1768336641071,0.69769332,143.27,143.23,0.58306025]
[1768336641483,0.69769332,143.28,143.23,0.58306025]
[1768336641866,4.20398567,143.28,143.23,0.58306025]
[1768336642278,0.69769332,143.27,143.22,7.68317224]
[1768336642681,11.1834852,143.28,143.23,0.58306025]
[1768336643066,0.69769332,143.26,143.22,0.1179672]
[1768336643761,0.69769332,143.26,143.22,3.62425955]
[1768336644462,0.69769332,143.26,143.22,0.1179672]
[1768336644974,0.69769332,143.26,143.22,10.60634323]
[1768336645688,0.69769332,143.28,143.24,0.58306025]
[1768336646684,0.69769332,143.28,143.24,7.56419953]
[1768336647085,0.69769332,143.28,143.24,6.98113928]
[1768336648062,0.69769332,143.24,143.18,0.67586388]
[1768336648262,0.69769332,143.22,143.17,7.0846041]
[1768336648463,0.69769332,143.21,143.17,0.1]
[1768336648662,0.69769332,143.21,143.17,7.08467398]
[1768336649493,0.69769332,143.21,143.17,19.80467398]
[1768336649669,0.69769332,143.21,143.17,7.08467398]
[1768336649875,0.69769332,143.21,143.17,19.80467398]
[1768336650186,0.69769332,143.21,143.17,23.98683021]
[1768336650392,0.69769332,143.23,143.17,23.98683021]
[1768336650584,0.69769332,143.23,143.18,0.67586388]
[1768336650891,4.20398567,143.22,143.17,19.80467398]
[1768336651063,4.20398567,143.18,143.15,0.1]
[1768336651267,4.20398567,143.16,143.14,19.26539226]
[1768336651789,3.50629235,143.15,143.14,19.26539226]
[1768336652206,0.69769332,143.21,143.14,26.25155964]
[1768336652385,3.50629235,143.17,143.14,26.25155964]
[1768336652569,4.20398567,143.17,143.14,26.25155964]
[1768336653266,0.69769332,143.16,143.14,25.52655964]
[1768336653684,0.69769332,143.16,143.14,24.65028042]
[1768336653899,0.59769332,143.18,143.14,24.65028042]
[1768336654267,9.29218807,143.18,143.14,24.65028042]
[1768336654462,0.099,143.17,143.14,17.66411304]
[1768336655895,8.79349475,143.17,143.14,17.66411304]
[1768336656069,0.099,143.17,143.14,17.66411304]
[1768336656608,8.79349475,143.17,143.14,17.66411304]
[1768336656778,0.099,143.17,143.14,17.66411304]
[1768336656971,15.77834781,143.17,143.14,17.66411304]
[1768336657577,0.59270638,143.16,143.14,17.66411304]
[1768336657783,0.49270638,143.16,143.09,0.65834053]
[1768336658074,0.099,143.15,143.1,16.3407691]
[1768336658485,8.79349475,143.15,143.1,7.64627435]
[1768336658885,15.77918254,143.15,143.1,7.646449]
[1768336659099,0.48876931,143.14,143.08,3.25076796]
[1768336659407,0.10289769,143.13,143.08,2.59242743]
[1768336659705,0.099,143.15,143.1,9.35283528]
[1768336659865,0.099,143.15,143.1,7.64633271]
[1768336660300,0.099,143.15,143.11,8.69449475]
[1768336662495,0.099,143.15,143.09,6.98860856]
[1768336662796,0.48876931,143.14,143.1,9.35283528]
[1768336662999,0.099,143.15,143.1,9.35283528]
[1768336663373,0.099,143.15,143.1,8.69449475]
[1768336663580,7.08426535,143.16,143.11,0.65834053]
[1768336664079,15.7787601,143.16,143.11,0.65834053]
[1768336664281,0.48876931,143.15,143.11,0.65834053]
[1768336664482,0.48876931,143.15,143.1,0.65834053]
[1768336664684,0.48876931,143.15,143.11,8.69449475]
[1768336665413,17.45975057,143.19,143.11,8.69449475]
[1768336665414,8.79349475,143.18,143.13,0.65834053]
[1768336665780,9.18326406,143.17,143.11,7.6459301]
[1768336665979,0.10289769,143.16,143.11,7.6459301]
[1768336666676,0.4849106,143.15,143.11,0.65834053]
[1768336667099,9.17940535,143.15,143.11,0.65834053]
[1768336667309,0.10671782,143.14,143.1,0.65834053]
[1768336667510,0.099,143.15,143.1,0.65834053]
[1768336667801,0.099,143.15,143.1,16.34093164]
[1768336668807,0.099,143.15,143.11,9.35283528]
[1768336670612,0.099,143.15,143.11,16.34039221]
[1768336672911,0.099,143.15,143.11,7.64589746]
[1768336673214,0.099,143.15,143.11,16.34039221]
[1768336673393,0.099,143.15,143.11,7.64589746]
[1768336673595,0.099,143.15,143.11,11.15766627]
[1768336673913,10.98965243,143.17,143.11,11.15766627]
[1768336674215,0.099,143.16,143.12,0.65834053]
[1768336674682,7.08420608,143.16,143.12,0.65834053]
[1768336675918,0.49270638,143.19,143.14,0.65834053]
[1768336676118,0.49270638,143.19,143.14,4.17010934]
[1768336676315,0.49270638,143.19,143.15,0.65834053]
[1768336676513,6.98290778,143.21,143.17,3.51176881]
[1768336676943,6.98290778,143.21,143.16,4.17010934]
[1768336677118,0.49270638,143.2,143.16,4.17010934]
[1768336677930,7.47603091,143.2,143.17,3.51176881]
[1768336678717,7.47603091,143.2,143.16,4.17010934]
[1768336679742,7.47603091,143.2,143.16,0.65834053]
[1768336680612,0.099,143.19,143.14,16.91010934]
[1768336681130,0.10289769,143.17,143.12,0.65834053]
[1768336681438,0.10289769,143.17,143.13,0.65834053]
[1768336682013,7.08764515,143.17,143.12,15.64555239]
[1768336682217,0.4849106,143.16,143.12,13.39834053]
[1768336682432,0.10671782,143.15,143.1,0.65834053]
[1768336682643,0.10671782,143.15,143.1,2.90555239]
[1768336682814,0.48112867,143.14,143.08,22.97950171]
[1768336683132,0.48112867,143.14,143.09,2.24721186]
[1768336683316,0.48112867,143.14,143.09,6.01082047]
[1768336683509,0.48112867,143.14,143.09,0.65834053]
[1768336683712,0.48112867,143.14,143.09,6.01082047]
[1768336684024,12.43715929,143.15,143.1,0.65834053]
[1768336684223,0.48876931,143.14,143.09,5.35247994]
[1768336684530,0.48876931,143.14,143.09,12.99910672]
[1768336685227,0.48876931,143.14,143.1,6.98804943]
[1768336685427,0.48876931,143.14,143.1,12.34052937]
[1768336686244,0.49270638,143.17,143.13,0.71918109]
[1768336686539,5.45147994,143.18,143.14,0.71918109]
[1768336686718,5.35247994,143.17,143.12,0.71918109]
[1768336686918,5.84124925,143.17,143.12,0.71918109]
[1768336687132,0.10289769,143.16,143.12,0.71918109]
[1768336687342,0.10289769,143.16,143.1,13.05971046]
[1768336687513,0.10289769,143.16,143.11,6.07166103]
[1768336687714,0.4849106,143.15,143.1,0.71918109]
[1768336687936,0.4849106,143.15,143.11,0.71918109]
[1768336688337,6.98521165,143.16,143.11,13.05926471]
[1768336688542,6.98521165,143.16,143.12,0.71918109]
[1768336691229,5.84518632,143.17,143.12,0.71918109]
[1768336691230,7.47748805,143.17,143.13,0.71918109]
[1768336693972,6.98426339,143.18,143.14,0.71918109]
[1768336694327,12.82891707,143.19,143.14,7.70528339]
[1768336694551,6.98341645,143.2,143.15,0.71918109]
[1768336694731,12.82808403,143.21,143.17,0.71918109]
[1768336694918,12.82808403,143.21,143.16,0.71918109]
[1768336694919,7.47560409,143.21,143.16,0.71918109]
[1768336695125,12.82808403,143.21,143.16,0.71918109]
[1768336695349,7.47560409,143.21,143.17,0.71918109]
[1768336695527,12.82808403,143.21,143.17,0.71918109]
[1768336695734,12.82808403,143.21,143.16,0.71918109]
[1768336697335,7.47302189,143.26,143.2,6.01860582]
[1768336697531,7.47302189,143.26,143.22,0.66612588]
[1768336698045,7.47302189,143.26,143.22,6.01860582]
[1768336698351,0.49270638,143.28,143.23,5.35247994]
[1768336698554,7.47204753,143.28,143.23,6.01860582]
[1768336699243,0.099,143.27,143.23,12.33414921]
[1768336699438,0.099,143.27,143.24,5.35247994]
[1768336699751,0.099,143.27,143.23,12.33414921]
[1768336699948,0.099,143.27,143.22,7.64822298]
[1768336700151,0.099,143.27,143.23,6.01860582]
[1768336700447,0.099,143.27,143.23,7.64785171]
[1768336700649,0.099,143.27,143.23,0.66612588]
[1768336700847,0.099,143.27,143.23,6.01860582]
[1768336701048,7.0789677,143.27,143.23,0.66612588]
[1768336701434,7.0789677,143.27,143.23,6.01860582]
[1768336702652,0.099,143.28,143.23,6.01860582]
[1768336702948,5.45147994,143.28,143.23,0.66612588]
[1768336703152,24.42258042,143.31,143.21,0.66612588]
[1768336703153,0.4849106,143.25,143.21,0.66612588]
[1768336703346,5.83739054,143.25,143.2,0.66612588]
[1768336704246,0.11046193,143.22,143.18,0.66612588]
[1768336704553,0.11046193,143.22,143.17,0.66612588]
[1768336704554,6.9827526,143.21,143.17,0.66612588]
[1768336704732,0.11413153,143.2,143.15,0.66612588]
[1768336704938,5.35247994,143.2,143.15,0.66612588]
[1768336705441,29.89111404,143.21,143.15,0.66612588]
[1768336705643,29.89111404,143.21,143.16,0.66612588]
[1768336707347,24.5386341,143.21,143.16,0.66612588]
[1768336707656,29.89111404,143.21,143.16,0.66612588]
[1768336708740,5.35247994,143.19,143.16,0.66612588]
[1768336709141,5.35247994,143.2,143.16,0.66612588]
[1768336709543,6.98470349,143.17,143.14,0.66612588]
[1768336709752,6.9547035,143.17,143.14,0.66612588]
[1768336709950,6.9547035,143.17,143.13,12.74]
[1768336710153,5.35247994,143.16,143.12,0.66612588]
[1768336710470,0.49270638,143.12,143.05,0.66612588]
[1768336710653,5.35247994,143.09,143.05,0.66612588]
[1768336710853,6.6801107,143.12,143.05,0.66612588]
[1768336710854,0.48876931,143.11,143.05,0.66612588]
[1768336711164,5.35247994,143.08,143.05,0.66612588]
[1768336711341,0.10289769,143.1,143.05,0.66612588]
[1768336711535,5.35247994,143.07,143.04,0.1]
[1768336711740,5.35247994,143.05,143.04,1e-08]
[1768336712153,0.48112867,143.07,143.04,1e-08]
[1768336712364,0.49270638,143.06,142.97,0.66612588]
[1768336712563,5.35247994,143.03,142.98,0.66612588]
[1768336713549,0.099,143.05,142.99,0.66612588]
[1768336713771,5.35247994,143.04,142.99,0.66612588]
[1768336714266,0.48876931,143.05,142.99,0.66612588]
[1768336714485,12.74,143.05,143.0,0.66612588]
[1768336714846,12.34255403,143.06,143.01,0.66527196]
[1768336715143,5.35247994,143.06,143.02,0.66527196]
[1768336715348,12.34216223,143.07,143.02,0.66527196]
[1768336715571,12.74,143.08,143.02,0.66527196]
[1768336715770,6.98964466,143.07,143.02,0.66527196]
[1768336716069,12.83089391,143.07,143.02,0.66527196]
[1768336716444,7.47841397,143.07,143.02,0.66527196]
[1768336717061,12.83089391,143.07,143.02,0.66527196]
[1768336717261,7.47841397,143.07,143.02,0.66527196]
[1768336717454,12.83089391,143.07,143.02,0.66527196]
[1768336717967,12.83089391,143.07,143.02,7.6572686]
[1768336718571,6.98964466,143.07,143.03,0.66527196]
[1768336718757,12.3421246,143.07,143.03,0.66527196]